[Event "Live Chess"]
[Site "Chess.com"]
[Date "2024.06.01"]
[Round "-"]
[White "gobbles19"]
[Black "LL220284LL"]
[Result "1-0"]
[WhiteElo "2277"]
[BlackElo "2518"]
[TimeControl "300"]
[EndTime "15:06:17 PDT"]
[Termination "gobbles19 won by resignation"]

1. e4 {[%clk 0:04:57.8]} 1... c6 {[%clk 0:04:57.6]} 2. d4 {[%clk 0:04:57]} 2...
g6 {[%clk 0:04:55.7]} 3. Nf3 {[%clk 0:04:55]} 3... Bg7 {[%clk 0:04:53.9]} 4. Bd3
{[%clk 0:04:52.3]} 4... Nf6 {[%clk 0:04:51.4]} 5. e5 {[%clk 0:04:50.2]} 5... Nd5
{[%clk 0:04:50.5]} 6. a3 {[%clk 0:04:48.3]} 6... d6 {[%clk 0:04:49.9]} 7. c4
{[%clk 0:04:47]} 7... Nb6 {[%clk 0:04:48.8]} 8. O-O {[%clk 0:04:43]} 8... dxe5
{[%clk 0:04:47.5]} 9. dxe5 {[%clk 0:04:42.9]} 9... Bg4 {[%clk 0:04:45.3]} 10.
Re1 {[%clk 0:04:37.3]} 10... e6 {[%clk 0:04:38.5]} 11. h3 {[%clk 0:04:35.7]}
11... Bxf3 {[%clk 0:04:37.4]} 12. Qxf3 {[%clk 0:04:35.3]} 12... N8d7 {[%clk
0:04:35.9]} 13. Bf4 {[%clk 0:04:33.4]} 13... O-O {[%clk 0:04:32]} 14. Nc3 {[%clk
0:04:31.7]} 14... Qc7 {[%clk 0:04:28]} 15. Qg3 {[%clk 0:04:25]} 15... Nc5 {[%clk
0:04:24.9]} 16. Bf1 {[%clk 0:04:17.3]} 16... Rad8 {[%clk 0:04:19.6]} 17. Rad1
{[%clk 0:04:16.5]} 17... Nba4 {[%clk 0:04:09.9]} 18. b4 {[%clk 0:04:06.9]} 18...
Nxc3 {[%clk 0:04:06.5]} 19. Qxc3 {[%clk 0:04:06.8]} 19... Nd7 {[%clk 0:04:04.4]}
20. c5 {[%clk 0:04:01.6]} 20... Nb8 {[%clk 0:03:55.1]} 21. h4 {[%clk 0:03:55.2]}
21... Rxd1 {[%clk 0:03:52.6]} 22. Rxd1 {[%clk 0:03:53.4]} 22... Rd8 {[%clk
0:03:52.1]} 23. Rd4 {[%clk 0:03:45.5]} 23... Rxd4 {[%clk 0:03:50]} 24. Qxd4
{[%clk 0:03:44.7]} 24... Nd7 {[%clk 0:03:49.6]} 25. Qd6 {[%clk 0:03:40.3]} 25...
Qc8 {[%clk 0:03:43]} 26. h5 {[%clk 0:03:33.9]} 26... Bf8 {[%clk 0:03:40.3]} 27.
Qd3 {[%clk 0:03:26.7]} 27... a5 {[%clk 0:03:38.8]} 28. hxg6 {[%clk 0:03:24.1]}
28... hxg6 {[%clk 0:03:36.6]} 29. Qd2 {[%clk 0:03:15.9]} 29... axb4 {[%clk
0:03:34.5]} 30. axb4 {[%clk 0:03:14.8]} 30... b6 {[%clk 0:03:32.6]} 31. cxb6
{[%clk 0:03:01.8]} 31... Nxb6 {[%clk 0:03:32.5]} 32. b5 {[%clk 0:02:47.9]} 32...
cxb5 {[%clk 0:03:26]} 33. Bxb5 {[%clk 0:02:46.5]} 33... Nd5 {[%clk 0:03:25.3]}
34. Bg3 {[%clk 0:02:41.8]} 34... Bb4 {[%clk 0:03:21.9]} 35. Qe2 {[%clk
0:02:32.7]} 35... Qc1+ {[%clk 0:03:19.6]} 36. Kh2 {[%clk 0:02:30.7]} 36... Qh6+
{[%clk 0:03:17.6]} 37. Kg1 {[%clk 0:02:29.4]} 37... Qc1+ {[%clk 0:03:09.7]} 38.
Qf1 {[%clk 0:02:28.5]} 38... Qd2 {[%clk 0:03:04.5]} 39. Qd3 {[%clk 0:02:22.7]}
39... Qe1+ {[%clk 0:02:55.8]} 40. Qf1 {[%clk 0:02:21.6]} 40... Qc3 {[%clk
0:02:55.3]} 41. Qc4 {[%clk 0:02:14.5]} 41... Qxc4 {[%clk 0:02:45.7]} 42. Bxc4
{[%clk 0:02:14.4]} 42... Ne7 {[%clk 0:02:42.7]} 43. Kf1 {[%clk 0:02:09.9]} 43...
g5 {[%clk 0:02:41.8]} 44. Ke2 {[%clk 0:02:06.3]} 44... Kg7 {[%clk 0:02:40.6]}
45. Kf3 {[%clk 0:02:02]} 45... Nf5 {[%clk 0:02:38.7]} 46. Bh2 {[%clk 0:02:00.3]}
46... Kh6 {[%clk 0:02:35]} 47. Ke4 {[%clk 0:01:58.2]} 47... Bc5 {[%clk
0:02:31.5]} 48. f3 {[%clk 0:01:54]} 48... Nh4 {[%clk 0:02:29]} 49. g4 {[%clk
0:01:50.7]} 49... Ng2 {[%clk 0:02:24.4]} 50. Bb5 {[%clk 0:01:47.1]} 50... Kg6
{[%clk 0:02:21.3]} 51. Bg3 {[%clk 0:01:45.9]} 51... Ne3 {[%clk 0:02:19.7]} 52.
Be1 {[%clk 0:01:42.8]} 52... Nc2 {[%clk 0:02:18]} 53. Bg3 {[%clk 0:01:39.6]}
53... Nd4 {[%clk 0:02:16.6]} 54. Bd3 {[%clk 0:01:38.5]} 54... Nb3 {[%clk
0:02:08.3]} 55. Bc2 {[%clk 0:01:34.7]} 55... Nc1 {[%clk 0:02:01]} 56. Bd1 {[%clk
0:01:23.9]} 56... Kg7 {[%clk 0:01:58.7]} 57. Be1 {[%clk 0:01:19.7]} 57... Na2
{[%clk 0:01:54.9]} 58. Kd3 {[%clk 0:01:15.2]} 58... Bb4 {[%clk 0:01:50.1]} 59.
Bf2 {[%clk 0:01:06.1]} 59... Nc3 {[%clk 0:01:47.9]} 60. Bb3 {[%clk 0:01:02.5]}
60... Nd5 {[%clk 0:01:36.7]} 61. Bxd5 {[%clk 0:01:00.6]} 61... exd5 {[%clk
0:01:36.6]} 62. Kd4 {[%clk 0:00:59.5]} 62... Bd2 {[%clk 0:01:33.1]} 63. Kxd5
{[%clk 0:00:58.7]} 63... Kf8 {[%clk 0:01:32.1]} 64. Bc5+ {[%clk 0:00:57.3]}
64... Ke8 {[%clk 0:01:31.1]} 65. Ke4 {[%clk 0:00:56.8]} 65... Kd7 {[%clk
0:01:29.2]} 66. Be3 {[%clk 0:00:55.3]} 66... Bxe3 {[%clk 0:01:25.4]} 67. Kxe3
{[%clk 0:00:55.2]} 67... Ke6 {[%clk 0:01:24.6]} 68. Ke4 {[%clk 0:00:54.3]} 68...
f6 {[%clk 0:01:19.1]} 69. exf6 {[%clk 0:00:53.1]} 69... Kxf6 {[%clk 0:01:19]}
70. Kd5 {[%clk 0:00:51.9]} 70... Kf7 {[%clk 0:01:17.8]} 71. Ke5 {[%clk
0:00:51.2]} 71... Kg6 {[%clk 0:01:17.1]} 72. Ke6 {[%clk 0:00:50.6]} 72... Kg7
{[%clk 0:01:16.5]} 73. Kf5 {[%clk 0:00:49.9]} 73... Kh6 {[%clk 0:01:15.9]} 74.
Kf6 {[%clk 0:00:49.6]} 1-0

[Event "Live Chess"]
[Site "Chess.com"]
[Date "2024.06.01"]
[Round "-"]
[White "McFim"]
[Black "Plato_77"]
[Result "1-0"]
[WhiteElo "1625"]
[BlackElo "1325"]
[TimeControl "300"]
[EndTime "15:06:44 PDT"]
[Termination "McFim won by resignation"]

1. e4 {[%clk 0:04:57]} 1... e6 {[%clk 0:04:57.3]} 2. d4 {[%clk 0:04:55.6]} 2...
d5 {[%clk 0:04:56.5]} 3. e5 {[%clk 0:04:54.1]} 3... c5 {[%clk 0:04:55]} 4. c3
{[%clk 0:04:53.4]} 4... Nc6 {[%clk 0:04:54]} 5. Nf3 {[%clk 0:04:51.8]} 5... Qb6
{[%clk 0:04:53.1]} 6. Be2 {[%clk 0:04:50.1]} 6... cxd4 {[%clk 0:04:45.5]} 7.
cxd4 {[%clk 0:04:48.8]} 7... Bb4+ {[%clk 0:04:37.9]} 8. Bd2 {[%clk 0:04:47.4]}
8... Nxd4 {[%clk 0:04:24.4]} 9. Nxd4 {[%clk 0:04:36.5]} 9... Qxd4 {[%clk
0:04:14.9]} 10. Nc3 {[%clk 0:04:27]} 10... Bxc3 {[%clk 0:04:09.8]} 11. bxc3
{[%clk 0:04:25.3]} 11... Qxe5 {[%clk 0:04:05.5]} 12. O-O {[%clk 0:04:24.7]}
12... Ne7 {[%clk 0:04:01.1]} 13. Rb1 {[%clk 0:04:20.3]} 13... O-O {[%clk
0:03:58.5]} 14. Re1 {[%clk 0:04:18.4]} 14... Qc7 {[%clk 0:03:49.5]} 15. Qb3
{[%clk 0:04:10.6]} 15... a6 {[%clk 0:03:46.9]} 16. Bd3 {[%clk 0:04:04.7]} 16...
b5 {[%clk 0:03:44]} 17. Re3 {[%clk 0:04:02.4]} 17... Bb7 {[%clk 0:03:41.6]} 18.
Rh3 {[%clk 0:04:00.1]} 18... Ng6 {[%clk 0:03:40]} 19. Rg3 {[%clk 0:03:47.3]}
19... Ne5 {[%clk 0:03:26.6]} 20. Be2 {[%clk 0:03:39.1]} 20... Nc4 {[%clk
0:03:20.2]} 21. Bh6 {[%clk 0:03:33.1]} 21... g6 {[%clk 0:02:56.8]} 22. Qd1
{[%clk 0:03:29.7]} 22... Rfd8 {[%clk 0:02:45]} 23. h4 {[%clk 0:03:27.3]} 23...
f5 {[%clk 0:02:17.1]} 24. h5 {[%clk 0:03:22]} 24... Qf7 {[%clk 0:02:13]} 25.
hxg6 {[%clk 0:03:16.4]} 25... hxg6 {[%clk 0:02:12.9]} 26. Bh5 {[%clk 0:03:04.8]}
26... Kh7 {[%clk 0:01:51.1]} 27. Bxg6+ {[%clk 0:02:59.8]} 27... Qxg6 {[%clk
0:01:51]} 28. Rxg6 {[%clk 0:02:58.3]} 28... Kxg6 {[%clk 0:01:50.9]} 29. Be3
{[%clk 0:02:48.7]} 29... Nxe3 {[%clk 0:01:47.3]} 30. fxe3 {[%clk 0:02:47]} 30...
Rh8 {[%clk 0:01:45.4]} 31. Qe1 {[%clk 0:02:41.7]} 31... Rag8 {[%clk 0:01:40.4]}
32. Qg3+ {[%clk 0:02:40.1]} 32... Kf6 {[%clk 0:01:38.6]} 33. Qc7 {[%clk
0:02:36]} 33... Rg7 {[%clk 0:01:35]} 34. Qc5 {[%clk 0:02:32.2]} 34... d4 {[%clk
0:01:32.2]} 35. Qxd4+ {[%clk 0:02:30.1]} 35... Ke7 {[%clk 0:01:22.5]} 36. Qxg7+
{[%clk 0:02:27.1]} 1-0

[Event "Live Chess"]
[Site "Chess.com"]
[Date "2024.06.01"]
[Round "-"]
[White "Queensandpawns"]
[Black "AlexanderMatlak"]
[Result "1-0"]
[WhiteElo "2380"]
[BlackElo "2420"]
[TimeControl "300"]
[EndTime "15:07:02 PDT"]
[Termination "Queensandpawns won by resignation"]

1. e4 {[%clk 0:04:58.7]} 1... c5 {[%clk 0:04:58.6]} 2. d4 {[%clk 0:04:57.2]}
2... cxd4 {[%clk 0:04:57.5]} 3. c3 {[%clk 0:04:57.1]} 3... Nf6 {[%clk
0:04:53.3]} 4. e5 {[%clk 0:04:55.7]} 4... Nd5 {[%clk 0:04:52.5]} 5. cxd4 {[%clk
0:04:55.6]} 5... d6 {[%clk 0:04:51.1]} 6. Nf3 {[%clk 0:04:55.2]} 6... Nc6 {[%clk
0:04:50.1]} 7. Bc4 {[%clk 0:04:54.1]} 7... Nb6 {[%clk 0:04:49.4]} 8. Bb3 {[%clk
0:04:53.6]} 8... dxe5 {[%clk 0:04:47.6]} 9. O-O {[%clk 0:04:51.9]} 9... exd4
{[%clk 0:04:37.3]} 10. Ng5 {[%clk 0:04:50.3]} 10... e6 {[%clk 0:04:33.7]} 11.
Qf3 {[%clk 0:04:48.8]} 11... Qe7 {[%clk 0:04:21.3]} 12. Bf4 {[%clk 0:04:41.2]}
12... e5 {[%clk 0:04:08.5]} 13. Nxf7 {[%clk 0:04:35.3]} 13... exf4 {[%clk
0:04:02.2]} 14. Nxh8 {[%clk 0:04:32.4]} 14... Ne5 {[%clk 0:03:31.9]} 15. Qh5+
{[%clk 0:04:29.1]} 15... g6 {[%clk 0:03:28.6]} 16. Qd1 {[%clk 0:04:28.3]} 16...
Bg7 {[%clk 0:03:23]} 17. Re1 {[%clk 0:04:17.2]} 17... Be6 {[%clk 0:03:14.6]} 18.
Nd2 {[%clk 0:04:17.1]} 18... Bxb3 {[%clk 0:03:08.6]} 19. Nxb3 {[%clk 0:04:17]}
19... O-O-O {[%clk 0:03:07.6]} 20. a4 {[%clk 0:04:06.6]} 20... f3 {[%clk
0:03:04.3]} 21. a5 {[%clk 0:03:57.1]} 21... Nbc4 {[%clk 0:02:57.8]} 22. Qc1
{[%clk 0:03:52.4]} 22... Qc7 {[%clk 0:02:52.4]} 23. a6 {[%clk 0:03:41.9]} 23...
b6 {[%clk 0:02:40.2]} 24. Nxd4 {[%clk 0:03:30.4]} 24... Rxd4 {[%clk 0:02:33.4]}
25. b3 {[%clk 0:03:14.3]} 25... Nd6 {[%clk 0:02:26.7]} 26. Qe3 {[%clk
0:03:05.8]} 26... Nf5 {[%clk 0:02:14.8]} 27. Qg5 {[%clk 0:02:39.5]} 27... Rg4
{[%clk 0:02:08.3]} 28. Qd2 {[%clk 0:02:38.5]} 28... Rxg2+ {[%clk 0:02:06.7]} 29.
Kh1 {[%clk 0:02:38.1]} 29... Nc4 {[%clk 0:01:56.3]} 30. Re8+ {[%clk 0:02:29.8]}
1-0

[Event "Live Chess"]
[Site "Chess.com"]
[Date "2024.06.01"]
[Round "-"]
[White "KeithArkell"]
[Black "Duke_of_Bebington"]
[Result "1-0"]
[WhiteElo "2402"]
[BlackElo "1644"]
[TimeControl "300"]
[EndTime "15:07:09 PDT"]
[Termination "KeithArkell won by resignation"]

1. d4 {[%clk 0:04:57.5]} 1... d5 {[%clk 0:04:59.1]} 2. Nf3 {[%clk 0:04:56.7]}
2... Nf6 {[%clk 0:04:57.8]} 3. c4 {[%clk 0:04:55.9]} 3... c6 {[%clk 0:04:56.5]}
4. Nc3 {[%clk 0:04:54.6]} 4... dxc4 {[%clk 0:04:54.5]} 5. a4 {[%clk 0:04:53.1]}
5... Nd5 {[%clk 0:04:43.4]} 6. e4 {[%clk 0:04:49.2]} 6... Nxc3 {[%clk
0:04:41.1]} 7. bxc3 {[%clk 0:04:48.5]} 7... b5 {[%clk 0:04:38.9]} 8. Ne5 {[%clk
0:04:44.7]} 8... Be6 {[%clk 0:04:26.1]} 9. Be2 {[%clk 0:04:35.3]} 9... g6 {[%clk
0:04:23.9]} 10. h4 {[%clk 0:04:32.2]} 10... Bg7 {[%clk 0:04:23]} 11. Bf4 {[%clk
0:04:26.6]} 11... Nd7 {[%clk 0:04:20.9]} 12. Nxc6 {[%clk 0:04:25.3]} 12... Qb6
{[%clk 0:04:17.2]} 13. axb5 {[%clk 0:04:24.6]} 13... Qxb5 {[%clk 0:04:08.4]} 14.
Qa4 {[%clk 0:04:23.4]} 14... Qxa4 {[%clk 0:04:05.9]} 15. Rxa4 {[%clk 0:04:22.5]}
15... Nb6 {[%clk 0:04:04.2]} 16. Rxa7 {[%clk 0:04:20.2]} 16... Rxa7 {[%clk
0:04:01.3]} 17. Nxa7 {[%clk 0:04:19.4]} 17... Bd7 {[%clk 0:04:00.2]} 18. Kd2
{[%clk 0:04:14.6]} 18... h6 {[%clk 0:03:45.9]} 19. Rb1 {[%clk 0:04:13.2]} 19...
Nc8 {[%clk 0:03:40]} 20. Rb7 {[%clk 0:04:07.1]} 20... g5 {[%clk 0:03:18]} 21.
Bg3 {[%clk 0:04:01.8]} 21... gxh4 {[%clk 0:03:06.6]} 22. Bxh4 {[%clk 0:03:59.4]}
22... f6 {[%clk 0:02:59.1]} 23. Bxc4 {[%clk 0:03:55.2]} 1-0

[Event "Live Chess"]
[Site "Chess.com"]
[Date "2024.06.01"]
[Round "-"]
[White "ShanthamGrarks"]
[Black "dmitro74"]
[Result "1-0"]
[WhiteElo "1781"]
[BlackElo "1707"]
[TimeControl "300"]
[EndTime "15:07:13 PDT"]
[Termination "ShanthamGrarks won by resignation"]

1. d4 {[%clk 0:04:56.7]} 1... d5 {[%clk 0:04:58.7]} 2. Nc3 {[%clk 0:04:54.7]}
2... Nf6 {[%clk 0:04:57]} 3. Bf4 {[%clk 0:04:54]} 3... e6 {[%clk 0:04:54.4]} 4.
e3 {[%clk 0:04:49.8]} 4... c5 {[%clk 0:04:52.6]} 5. Nb5 {[%clk 0:04:46.1]} 5...
Na6 {[%clk 0:04:47]} 6. c3 {[%clk 0:04:44.5]} 6... Ne4 {[%clk 0:04:21.3]} 7. f3
{[%clk 0:04:32.1]} 7... g5 {[%clk 0:04:19.1]} 8. Be5 {[%clk 0:04:28.1]} 8... f6
{[%clk 0:04:17.4]} 9. fxe4 {[%clk 0:04:16.5]} 9... fxe5 {[%clk 0:04:15.8]} 10.
exd5 {[%clk 0:04:16.1]} 10... exd4 {[%clk 0:04:06.6]} 11. Qh5+ {[%clk
0:04:14.6]} 11... Kd7 {[%clk 0:03:58.8]} 12. dxe6+ {[%clk 0:04:13.4]} 12... Kc6
{[%clk 0:03:49.7]} 13. Qf3+ {[%clk 0:03:55.3]} 13... Kb6 {[%clk 0:03:47.9]} 14.
a4 {[%clk 0:03:49]} 14... d3 {[%clk 0:03:39.2]} 15. a5+ {[%clk 0:03:47.6]} 15...
Kxb5 {[%clk 0:03:37.9]} 16. Qe4 {[%clk 0:03:27.8]} 16... c4 {[%clk 0:03:29.4]}
17. b3 {[%clk 0:03:24]} 17... Qc7 {[%clk 0:03:12.4]} 18. bxc4+ {[%clk
0:03:21.5]} 18... Qxc4 {[%clk 0:03:09]} 19. Bxd3 {[%clk 0:03:20.9]} 1-0

[Event "Live Chess"]
[Site "Chess.com"]
[Date "2024.06.01"]
[Round "-"]
[White "e4evr"]
[Black "FlyingChessKestrel13"]
[Result "1/2-1/2"]
[WhiteElo "2275"]
[BlackElo "2086"]
[TimeControl "300"]
[EndTime "15:07:27 PDT"]
[Termination "Game drawn by repetition"]

1. Nf3 {[%clk 0:04:58.8]} 1... d5 {[%clk 0:04:58.9]} 2. Nc3 {[%clk 0:04:58.2]}
2... Nf6 {[%clk 0:04:55.2]} 3. d4 {[%clk 0:04:57.2]} 3... Nc6 {[%clk 0:04:53.5]}
4. Bf4 {[%clk 0:04:56.4]} 4... a6 {[%clk 0:04:51.3]} 5. e3 {[%clk 0:04:55.4]}
5... Bf5 {[%clk 0:04:49.8]} 6. h3 {[%clk 0:04:54.7]} 6... e6 {[%clk 0:04:49.2]}
7. Nh4 {[%clk 0:04:52.9]} 7... Bg6 {[%clk 0:04:48.2]} 8. Nxg6 {[%clk 0:04:52.2]}
8... hxg6 {[%clk 0:04:48.1]} 9. Be2 {[%clk 0:04:51.2]} 9... Bd6 {[%clk 0:04:46]}
10. Bxd6 {[%clk 0:04:49.1]} 10... Qxd6 {[%clk 0:04:44.1]} 11. Qd2 {[%clk
0:04:48.5]} 11... O-O-O {[%clk 0:04:42.4]} 12. Bf3 {[%clk 0:04:47.8]} 12... Kb8
{[%clk 0:04:40.6]} 13. O-O-O {[%clk 0:04:46.1]} 13... Ne7 {[%clk 0:04:37]} 14.
e4 {[%clk 0:04:43.4]} 14... dxe4 {[%clk 0:04:34.8]} 15. Nxe4 {[%clk 0:04:43.3]}
15... Nxe4 {[%clk 0:04:33.9]} 16. Bxe4 {[%clk 0:04:43.2]} 16... Nf5 {[%clk
0:04:30.9]} 17. Bxf5 {[%clk 0:04:28.6]} 17... gxf5 {[%clk 0:04:29.5]} 18. Qe3
{[%clk 0:04:27]} 18... g6 {[%clk 0:04:28.6]} 19. f4 {[%clk 0:04:23.7]} 19... Qd5
{[%clk 0:04:27.2]} 20. g3 {[%clk 0:04:21.9]} 20... Qxa2 {[%clk 0:04:25.5]} 21.
Qc3 {[%clk 0:04:18.1]} 21... Qd5 {[%clk 0:04:21.8]} 22. Rh2 {[%clk 0:04:14.2]}
22... Rd6 {[%clk 0:04:20.2]} 23. h4 {[%clk 0:04:11.4]} 23... Rc6 {[%clk
0:04:19.1]} 24. Qa3 {[%clk 0:04:07.4]} 24... Qd6 {[%clk 0:04:06.4]} 25. Qxd6
{[%clk 0:04:04.3]} 25... cxd6 {[%clk 0:04:05.6]} 26. Rhd2 {[%clk 0:04:04]} 26...
d5 {[%clk 0:04:04.6]} 27. Rd3 {[%clk 0:04:02.8]} 27... Rc4 {[%clk 0:04:01.9]}
28. Kd2 {[%clk 0:03:59.8]} 28... b5 {[%clk 0:03:59.6]} 29. Ra1 {[%clk
0:03:58.2]} 29... Kb7 {[%clk 0:03:58.6]} 30. b3 {[%clk 0:03:52.6]} 30... Rc6
{[%clk 0:03:56]} 31. b4 {[%clk 0:03:51.8]} 31... Rc4 {[%clk 0:03:54.7]} 32. c3
{[%clk 0:03:50.9]} 32... Kb6 {[%clk 0:03:49.9]} 33. Ra3 {[%clk 0:03:49.9]} 33...
Ra8 {[%clk 0:03:47.4]} 34. Re3 {[%clk 0:03:49]} 34... a5 {[%clk 0:03:46.1]} 35.
bxa5+ {[%clk 0:03:47.3]} 35... Rxa5 {[%clk 0:03:45.1]} 36. Rxa5 {[%clk
0:03:44.9]} 36... Kxa5 {[%clk 0:03:44.4]} 37. Re1 {[%clk 0:03:44.5]} 37... b4
{[%clk 0:03:40.4]} 38. cxb4+ {[%clk 0:03:42.2]} 38... Rxb4 {[%clk 0:03:33.6]}
39. Kc3 {[%clk 0:03:41.3]} 39... Rc4+ {[%clk 0:03:32.2]} 40. Kd3 {[%clk
0:03:40.5]} 40... Kb6 {[%clk 0:03:31.3]} 41. Rb1+ {[%clk 0:03:38.7]} 41... Kc6
{[%clk 0:03:30.6]} 42. Rb8 {[%clk 0:03:37.5]} 42... Ra4 {[%clk 0:03:28.4]} 43.
Ke3 {[%clk 0:03:16.1]} 43... Ra3+ {[%clk 0:03:25]} 44. Kf2 {[%clk 0:03:15.2]}
44... Kd6 {[%clk 0:03:23.2]} 45. Rf8 {[%clk 0:03:14.8]} 45... Ke7 {[%clk
0:03:22]} 46. Rb8 {[%clk 0:03:12.6]} 46... Kf6 {[%clk 0:03:20.7]} 47. Rb2 {[%clk
0:03:09.1]} 47... Rd3 {[%clk 0:03:19.1]} 48. Rb4 {[%clk 0:03:08.1]} 48... Kg7
{[%clk 0:03:15.5]} 49. Ra4 {[%clk 0:03:07.1]} 49... Kh6 {[%clk 0:03:11]} 50. Kg2
{[%clk 0:03:04.4]} 50... Kh5 {[%clk 0:03:07.8]} 51. Kh3 {[%clk 0:03:03.8]} 51...
Kh6 {[%clk 0:03:05.1]} 52. Rb4 {[%clk 0:02:59.9]} 52... Kg7 {[%clk 0:03:04.1]}
53. Ra4 {[%clk 0:02:59.2]} 53... f6 {[%clk 0:02:53.6]} 54. Kg2 {[%clk
0:02:55.4]} 54... g5 {[%clk 0:02:52.1]} 55. hxg5 {[%clk 0:02:53.9]} 55... fxg5
{[%clk 0:02:51.4]} 56. fxg5 {[%clk 0:02:53.3]} 56... Kg6 {[%clk 0:02:50.6]} 57.
Ra6 {[%clk 0:02:52.8]} 57... Kxg5 {[%clk 0:02:49.8]} 58. Rxe6 {[%clk 0:02:52.4]}
58... Rxd4 {[%clk 0:02:47.8]} 59. Re8 {[%clk 0:02:52]} 59... Rd2+ {[%clk
0:02:44.8]} 60. Kf3 {[%clk 0:02:51.1]} 60... Rd3+ {[%clk 0:02:44]} 61. Kf2
{[%clk 0:02:50.5]} 61... d4 {[%clk 0:02:42.9]} 62. Rd8 {[%clk 0:02:49.2]} 62...
Rd2+ {[%clk 0:02:36]} 63. Kf3 {[%clk 0:02:48.4]} 63... Kf6 {[%clk 0:02:32]} 64.
g4 {[%clk 0:02:44.4]} 64... fxg4+ {[%clk 0:02:27.2]} 65. Kxg4 {[%clk 0:02:43.5]}
65... Ke5 {[%clk 0:02:25.5]} 66. Kf3 {[%clk 0:02:42.6]} 66... Rd3+ {[%clk
0:02:22.5]} 67. Ke2 {[%clk 0:02:41.8]} 67... Re3+ {[%clk 0:02:21.8]} 68. Kd2
{[%clk 0:02:41.5]} 68... Rh3 {[%clk 0:02:20.9]} 69. Re8+ {[%clk 0:02:40.1]}
69... Kd5 {[%clk 0:02:20]} 70. Rd8+ {[%clk 0:02:39.6]} 70... Kc5 {[%clk
0:02:16.5]} 71. Rc8+ {[%clk 0:02:39.1]} 71... Kd5 {[%clk 0:02:15.5]} 72. Rd8+
{[%clk 0:02:38.5]} 72... Kc5 {[%clk 0:02:14.7]} 73. Rc8+ {[%clk 0:02:38]} 73...
Kd5 {[%clk 0:02:14]} 74. Rd8+ {[%clk 0:02:37.6]} 1/2-1/2

[Event "Live Chess"]
[Site "Chess.com"]
[Date "2024.06.01"]
[Round "-"]
[White "Silverback7829"]
[Black "A3ndrey9"]
[Result "0-1"]
[WhiteElo "903"]
[BlackElo "1296"]
[TimeControl "300"]
[EndTime "15:07:34 PDT"]
[Termination "A3ndrey9 won by checkmate"]

1. d4 {[%clk 0:04:57.7]} 1... c6 {[%clk 0:04:59.9]} 2. Nf3 {[%clk 0:04:56.3]}
2... d5 {[%clk 0:04:59.8]} 3. Nc3 {[%clk 0:04:55.1]} 3... Bf5 {[%clk 0:04:59.7]}
4. e3 {[%clk 0:04:53.4]} 4... Nf6 {[%clk 0:04:56.4]} 5. Bd3 {[%clk 0:04:47.4]}
5... Bxd3 {[%clk 0:04:54.1]} 6. Qxd3 {[%clk 0:04:45.2]} 6... e6 {[%clk
0:04:53.6]} 7. Ne5 {[%clk 0:04:41.8]} 7... Qb6 {[%clk 0:04:49.5]} 8. Na4 {[%clk
0:04:35.7]} 8... Qa5+ {[%clk 0:04:46.8]} 9. Qc3 {[%clk 0:04:20.5]} 9... Qxc3+
{[%clk 0:04:43.4]} 10. Nxc3 {[%clk 0:04:16.6]} 10... Nbd7 {[%clk 0:04:42.4]} 11.
O-O {[%clk 0:04:09.5]} 11... c5 {[%clk 0:04:34.7]} 12. b3 {[%clk 0:04:07.5]}
12... cxd4 {[%clk 0:04:33.1]} 13. exd4 {[%clk 0:04:05.1]} 13... Bd6 {[%clk
0:04:25.3]} 14. Nxd7 {[%clk 0:04:00]} 14... Nxd7 {[%clk 0:04:23.7]} 15. Be3
{[%clk 0:03:52.5]} 15... O-O {[%clk 0:04:21]} 16. Rae1 {[%clk 0:03:47.6]} 16...
Nf6 {[%clk 0:04:19.6]} 17. Bg5 {[%clk 0:03:42.1]} 17... Be7 {[%clk 0:04:16]} 18.
Bxf6 {[%clk 0:03:39.6]} 18... Bxf6 {[%clk 0:04:15]} 19. Nb5 {[%clk 0:03:33.9]}
19... a6 {[%clk 0:04:12.7]} 20. Nc7 {[%clk 0:03:30.5]} 20... Rac8 {[%clk
0:04:12]} 21. Nxe6 {[%clk 0:03:19.9]} 21... fxe6 {[%clk 0:04:11.9]} 22. Rxe6
{[%clk 0:03:17.1]} 22... Rxc2 {[%clk 0:04:10.1]} 23. Rd6 {[%clk 0:03:02.8]}
23... Bxd4 {[%clk 0:04:07.9]} 24. g3 {[%clk 0:02:55]} 24... Rfxf2 {[%clk
0:04:03.2]} 25. Rd8+ {[%clk 0:02:39.7]} 25... Rf8+ {[%clk 0:03:52.5]} 26. Kh1
{[%clk 0:02:26.9]} 26... Rxd8 {[%clk 0:03:51.9]} 27. a4 {[%clk 0:02:19.5]} 27...
Rf8 {[%clk 0:03:48.7]} 28. Rxf8+ {[%clk 0:02:07.4]} 28... Kxf8 {[%clk
0:03:47.7]} 29. b4 {[%clk 0:01:53.6]} 29... Kf7 {[%clk 0:03:46.7]} 30. b5 {[%clk
0:01:50.2]} 30... Kf6 {[%clk 0:03:45.9]} 31. bxa6 {[%clk 0:01:36.1]} 31... bxa6
{[%clk 0:03:43]} 32. h3 {[%clk 0:01:29.3]} 32... Ke5 {[%clk 0:03:36]} 33. g4
{[%clk 0:01:24]} 33... Kf4 {[%clk 0:03:31]} 34. a5 {[%clk 0:01:13.4]} 34... Kg3
{[%clk 0:03:30.5]} 35. h4 {[%clk 0:01:03.9]} 35... Rc1# {[%clk 0:03:30.4]} 0-1

[Event "Live Chess"]
[Site "Chess.com"]
[Date "2024.06.01"]
[Round "-"]
[White "Pandreq"]
[Black "bonantagulo"]
[Result "0-1"]
[WhiteElo "1190"]
[BlackElo "2194"]
[TimeControl "300"]
[EndTime "15:07:37 PDT"]
[Termination "bonantagulo won by resignation"]

1. d4 {[%clk 0:04:57.2]} 1... Nf6 {[%clk 0:04:58.9]} 2. c4 {[%clk 0:04:56.1]}
2... e5 {[%clk 0:04:58.2]} 3. Nc3 {[%clk 0:04:55.8]} 3... exd4 {[%clk
0:04:57.4]} 4. Qxd4 {[%clk 0:04:54.6]} 4... Nc6 {[%clk 0:04:57]} 5. Qd1 {[%clk
0:04:53.1]} 5... Bc5 {[%clk 0:04:56.3]} 6. Nf3 {[%clk 0:04:49.3]} 6... O-O
{[%clk 0:04:55.4]} 7. Bg5 {[%clk 0:04:45.9]} 7... h6 {[%clk 0:04:51.6]} 8. Bh4
{[%clk 0:04:43.5]} 8... Re8 {[%clk 0:04:45.4]} 9. e3 {[%clk 0:04:39.8]} 9... d6
{[%clk 0:04:40.4]} 10. b3 {[%clk 0:04:36.9]} 10... Bb4 {[%clk 0:04:36.2]} 11.
Qc2 {[%clk 0:04:29.4]} 11... g5 {[%clk 0:04:35]} 12. Bg3 {[%clk 0:04:25.6]}
12... Ne4 {[%clk 0:04:33.6]} 13. O-O-O {[%clk 0:04:02.1]} 13... Nxc3 {[%clk
0:04:23.1]} 14. Rd3 {[%clk 0:03:58.1]} 14... Bf5 {[%clk 0:04:18.3]} 15. Rxd6
{[%clk 0:03:47.8]} 15... Ba3+ {[%clk 0:04:03.6]} 0-1